[Event "Titled Tuesday Blitz February 22 Early 2022"]
[White "Batsiashvili, Nino"]
[Black "Ismayil, Malak"]
[WhiteFideId "13602993"]
[BlackFideId "13412604"]
[WhiteElo "2230"]
[BlackElo "1879"]
[Result "1-0"]
[Round "07"]
[TimeControl "180+1"]
[Date "2022.02.22"]
[WhiteClock "0:00:51"]
[BlackClock "0:00:41"]

1. d4 {[%clk 0:03:00]}  Nf6 {[%clk 0:02:56]} 2. c4 {[%clk 0:03:00]}  e6 {[%clk 0:02:55]} 3. Nc3 {[%clk 0:03:00]}  Bb4 {[%clk 0:02:55]} 4. Nf3 {[%clk 0:03:01]}  O-O {[%clk 0:02:52]} 5. Bg5 {[%clk 0:03:01]}  h6 {[%clk 0:02:50]} 6. Bh4 {[%clk 0:03:00]}  b6 {[%clk 0:02:48]} 7. e3 {[%clk 0:02:58]}  Bb7 {[%clk 0:02:47]} 8. Bd3 {[%clk 0:02:58]}  d6 {[%clk 0:02:38]} 9. Qc2 {[%clk 0:02:48]}  Nbd7 {[%clk 0:02:35]} 10. e4 {[%clk 0:02:42]}  e5 {[%clk 0:02:32]} 11. d5 {[%clk 0:02:39]}  Qe8 {[%clk 0:02:28]} 12. a3 {[%clk 0:02:34]}  Bxc3+ {[%clk 0:02:27]} 13. Qxc3 {[%clk 0:02:35]}  Nh5 {[%clk 0:02:25]} 14. Nd2 {[%clk 0:02:22]}  Nf4 {[%clk 0:02:23]} 15. Bf1 {[%clk 0:02:20]}  a5 {[%clk 0:02:18]} 16. f3 {[%clk 0:02:17]}  Ng6 {[%clk 0:02:12]} 17. Bf2 {[%clk 0:02:15]}  f5 {[%clk 0:02:11]} 18. exf5 {[%clk 0:02:14]}  Rxf5 {[%clk 0:02:12]} 19. Bd3 {[%clk 0:02:14]}  Rf6 {[%clk 0:02:11]} 20. Ne4 {[%clk 0:02:11]}  Rf8 {[%clk 0:02:11]} 21. O-O {[%clk 0:02:06]}  Nf4 {[%clk 0:02:09]} 22. Rae1 {[%clk 0:02:00]}  Nc5 {[%clk 0:02:05]} 23. Nxc5 {[%clk 0:01:53]}  bxc5 {[%clk 0:02:01]} 24. Bb1 {[%clk 0:01:53]}  Bc8 {[%clk 0:01:59]} 25. Be3 {[%clk 0:01:26]}  Nh5 {[%clk 0:01:52]} 26. f4 {[%clk 0:01:21]}  e4 {[%clk 0:01:44]} 27. Rf2 {[%clk 0:01:05]}  Bf5 {[%clk 0:01:40]} 28. h3 {[%clk 0:01:00]}  Ng3 {[%clk 0:01:37]} 29. Bxc5 {[%clk 0:00:58]}  Qg6 {[%clk 0:01:31]} 30. Bd4 {[%clk 0:00:56]}  Bxh3 {[%clk 0:01:25]} 31. Kh2 {[%clk 0:00:53]}  Rxf4 {[%clk 0:01:08]} 32. Qxg3 {[%clk 0:00:50]}  Qxg3+ {[%clk 0:00:41]} 33. Kxg3 {[%clk 0:00:51]}  Rxf2 {[%clk 0:00:41]} 34. Bxf2 {[%clk 0:00:51]}  Bf5 {[%clk 0:00:41]} 35. Bxe4 {[%clk 0:00:51]} 1-0


[Site "https://www.chess.com"]

[Event "Titled Tuesday Blitz February 22 Early 2022"]
[White "Borisova, Ekaterina"]
[Black "Chernomordik, Pavel"]
[WhiteFideId "34124184"]
[BlackFideId "2804530"]
[WhiteElo "2034"]
[BlackElo "2249"]
[Result "1-0"]
[Round "07"]
[TimeControl "180+1"]
[Date "2022.02.22"]
[WhiteClock "0:00:05"]
[BlackClock "0:00:06"]

1. d4 {[%clk 0:03:00]}  g6 {[%clk 0:03:00]} 2. e4 {[%clk 0:02:59]}  Bg7 {[%clk 0:03:01]} 3. Nc3 {[%clk 0:02:59]}  d6 {[%clk 0:03:01]} 4. Be3 {[%clk 0:02:59]}  a6 {[%clk 0:03:00]} 5. a4 {[%clk 0:02:58]}  b6 {[%clk 0:03:00]} 6. Qd2 {[%clk 0:02:58]}  Bb7 {[%clk 0:03:00]} 7. O-O-O {[%clk 0:02:54]}  Nd7 {[%clk 0:02:58]} 8. Kb1 {[%clk 0:02:53]}  e6 {[%clk 0:02:53]} 9. h4 {[%clk 0:02:53]}  h6 {[%clk 0:02:52]} 10. h5 {[%clk 0:02:53]}  g5 {[%clk 0:02:52]} 11. f4 {[%clk 0:02:53]}  gxf4 {[%clk 0:02:51]} 12. Bxf4 {[%clk 0:02:53]}  Qf6 {[%clk 0:02:41]} 13. Nf3 {[%clk 0:02:52]}  O-O-O {[%clk 0:02:36]} 14. Bd3 {[%clk 0:02:43]}  Kb8 {[%clk 0:02:33]} 15. Rdf1 {[%clk 0:02:41]}  Qe7 {[%clk 0:02:33]} 16. Qe2 {[%clk 0:02:35]}  Ka7 {[%clk 0:02:31]} 17. Be3 {[%clk 0:02:21]}  Ngf6 {[%clk 0:02:28]} 18. a5 {[%clk 0:02:16]}  b5 {[%clk 0:02:20]} 19. Rh3 {[%clk 0:01:35]}  Ka8 {[%clk 0:02:05]} 20. Nd2 {[%clk 0:01:28]}  c5 {[%clk 0:02:01]} 21. dxc5 {[%clk 0:01:22]}  dxc5 {[%clk 0:01:53]} 22. Rg3 {[%clk 0:01:17]}  Rhg8 {[%clk 0:01:50]} 23. e5 {[%clk 0:01:08]}  Nd5 {[%clk 0:01:41]} 24. Nxd5 {[%clk 0:01:00]}  exd5 {[%clk 0:01:34]} 25. Qf2 {[%clk 0:00:52]}  Qxe5 {[%clk 0:01:28]} 26. c3 {[%clk 0:00:42]}  d4 {[%clk 0:01:17]} 27. Bf4 {[%clk 0:00:37]}  Qf6 {[%clk 0:01:08]} 28. Ne4 {[%clk 0:00:33]}  Qe6 {[%clk 0:01:04]} 29. Bc7 {[%clk 0:00:26]}  Bxe4 {[%clk 0:00:58]} 30. Re1 {[%clk 0:00:25]}  Bxd3+ {[%clk 0:00:51]} 31. Rxd3 {[%clk 0:00:24]}  Ne5 {[%clk 0:00:42]} 32. Bxd8 {[%clk 0:00:15]}  Rxd8 {[%clk 0:00:42]} 33. cxd4 {[%clk 0:00:13]}  cxd4 {[%clk 0:00:37]} 34. Rxd4 {[%clk 0:00:11]}  Rc8 {[%clk 0:00:33]} 35. Rde4 {[%clk 0:00:09]}  Qd5 {[%clk 0:00:27]} 36. Qe2 {[%clk 0:00:07]}  Nc4 {[%clk 0:00:17]} 37. Re7 {[%clk 0:00:04]}  Qd2 {[%clk 0:00:10]} 38. Qxd2 {[%clk 0:00:02]}  Nxd2+ {[%clk 0:00:08]} 39. Ka2 {[%clk 0:00:03]}  Rc4 {[%clk 0:00:08]} 40. Re8+ {[%clk 0:00:03]}  Kb7 {[%clk 0:00:07]} 41. R1e7+ {[%clk 0:00:03]}  Kc6 {[%clk 0:00:07]} 42. Rc8+ {[%clk 0:00:03]}  Kd6 {[%clk 0:00:07]} 43. Rxc4 {[%clk 0:00:04]}  Nxc4 {[%clk 0:00:07]} 44. Rxf7 {[%clk 0:00:04]}  Bxb2 {[%clk 0:00:07]} 45. Ra7 {[%clk 0:00:04]}  Bd4 {[%clk 0:00:05]} 46. Rxa6+ {[%clk 0:00:04]}  Kc5 {[%clk 0:00:06]} 47. Rxh6 {[%clk 0:00:05]}  Kb4 {[%clk 0:00:06]} 48. a6 {[%clk 0:00:05]}  Ka4 {[%clk 0:00:06]} 49. Rg6 {[%clk 0:00:05]}  b4 {[%clk 0:00:06]} 50. Kb1 {[%clk 0:00:05]}  b3 {[%clk 0:00:05]} 51. a7 {[%clk 0:00:05]}  Na3+ {[%clk 0:00:05]} 52. Kc1 {[%clk 0:00:05]}  Bxa7 {[%clk 0:00:06]} 53. Ra6+ {[%clk 0:00:04]}  Kb4 {[%clk 0:00:05]} 54. Rxa7 {[%clk 0:00:03]}  Kc3 {[%clk 0:00:06]} 55. Rc7+ {[%clk 0:00:03]}  Nc4 {[%clk 0:00:05]} 56. Rxc4+ {[%clk 0:00:02]}  Kxc4 {[%clk 0:00:05]} 57. Kb2 {[%clk 0:00:03]}  Kd4 {[%clk 0:00:05]} 58. Kxb3 {[%clk 0:00:03]}  Ke4 {[%clk 0:00:06]} 59. g4 {[%clk 0:00:03]}  Ke5 {[%clk 0:00:04]} 60. Kc3 {[%clk 0:00:04]}  Kf6 {[%clk 0:00:05]} 61. Kd4 {[%clk 0:00:04]}  Kg5 {[%clk 0:00:06]} 62. Ke4 {[%clk 0:00:05]} 1-0


[Site "https://www.chess.com"]

[Event "Titled Tuesday Blitz February 22 Early 2022"]
[White "Bortnyk, Olexandr"]
[Black "Ponkratov, Pavel"]
[WhiteFideId "14120828"]
[BlackFideId "4157800"]
[WhiteElo "2723"]
[BlackElo "2487"]
[Result "1-0"]
[Round "07"]
[TimeControl "180+1"]
[Date "2022.02.22"]
[WhiteClock "0:00:18"]
[BlackClock "0:00:09"]

1. e4 {[%clk 0:02:59]}  c5 {[%clk 0:02:58]} 2. c3 {[%clk 0:02:55]}  d6 {[%clk 0:02:55]} 3. d4 {[%clk 0:02:55]}  Nf6 {[%clk 0:02:55]} 4. Bd3 {[%clk 0:02:54]}  Nc6 {[%clk 0:02:54]} 5. Nf3 {[%clk 0:02:52]}  Qc7 {[%clk 0:02:52]} 6. Bg5 {[%clk 0:02:40]}  g6 {[%clk 0:02:44]} 7. d5 {[%clk 0:02:20]}  Nb8 {[%clk 0:02:20]} 8. Nbd2 {[%clk 0:02:01]}  Bg7 {[%clk 0:02:20]} 9. Qe2 {[%clk 0:02:00]}  h6 {[%clk 0:02:19]} 10. Bf4 {[%clk 0:01:59]}  g5 {[%clk 0:02:13]} 11. Bg3 {[%clk 0:01:58]}  Nh5 {[%clk 0:02:13]} 12. e5 {[%clk 0:01:52]}  Nxg3 {[%clk 0:02:04]} 13. hxg3 {[%clk 0:01:44]}  dxe5 {[%clk 0:02:04]} 14. Nc4 {[%clk 0:01:34]}  Nd7 {[%clk 0:02:03]} 15. O-O-O {[%clk 0:01:34]}  b5 {[%clk 0:01:54]} 16. Ne3 {[%clk 0:01:21]}  c4 {[%clk 0:01:54]} 17. Be4 {[%clk 0:01:21]}  Qa5 {[%clk 0:01:39]} 18. d6 {[%clk 0:01:19]}  Rb8 {[%clk 0:01:31]} 19. Nf5 {[%clk 0:01:03]}  Bf6 {[%clk 0:01:23]} 20. dxe7 {[%clk 0:01:04]}  Qxa2 {[%clk 0:01:05]} 21. Bb1 {[%clk 0:00:56]}  Qa5 {[%clk 0:00:59]} 22. Nxe5 {[%clk 0:00:50]}  Nxe5 {[%clk 0:00:48]} 23. Rd8+ {[%clk 0:00:40]}  Qxd8 {[%clk 0:00:48]} 24. exd8=Q+ {[%clk 0:00:41]}  Kxd8 {[%clk 0:00:48]} 25. f4 {[%clk 0:00:41]}  gxf4 {[%clk 0:00:44]} 26. gxf4 {[%clk 0:00:42]}  Nd7 {[%clk 0:00:42]} 27. Rxh6 {[%clk 0:00:38]}  Rxh6 {[%clk 0:00:39]} 28. Nxh6 {[%clk 0:00:39]}  Kc7 {[%clk 0:00:38]} 29. Qe3 {[%clk 0:00:27]}  Rb6 {[%clk 0:00:31]} 30. Nxf7 {[%clk 0:00:27]}  b4 {[%clk 0:00:25]} 31. Ba2 {[%clk 0:00:19]}  bxc3 {[%clk 0:00:24]} 32. bxc3 {[%clk 0:00:20]}  Ba6 {[%clk 0:00:20]} 33. g4 {[%clk 0:00:21]}  Bb5 {[%clk 0:00:12]} 34. g5 {[%clk 0:00:20]}  Bg7 {[%clk 0:00:13]} 35. f5 {[%clk 0:00:21]}  Ra6 {[%clk 0:00:12]} 36. Bxc4 {[%clk 0:00:19]}  Bxc4 {[%clk 0:00:12]} 37. Qf4+ {[%clk 0:00:19]}  Kb7 {[%clk 0:00:08]} 38. Qxc4 {[%clk 0:00:19]}  Ra1+ {[%clk 0:00:08]} 39. Kb2 {[%clk 0:00:19]}  Ra6 {[%clk 0:00:09]} 40. Nd8+ {[%clk 0:00:18]}  Kb6 {[%clk 0:00:09]} 41. Qc6+ {[%clk 0:00:18]}  Ka5 {[%clk 0:00:09]} 42. Nb7# {[%clk 0:00:18]} 1-0


[Site "https://www.chess.com"]

[Event "Titled Tuesday Blitz February 22 Early 2022"]
[White "Brunner, Nicolas"]
[Black "Gelman, Alexander"]
[WhiteFideId "620246"]
[BlackFideId "4118316"]
[WhiteElo "2372"]
[BlackElo "2375"]
[Result "1/2-1/2"]
[Round "07"]
[TimeControl "180+1"]
[Date "2022.02.22"]
[WhiteClock "0:00:11"]
[BlackClock "0:00:10"]

1. d4 {[%clk 0:03:00]}  Nf6 {[%clk 0:02:59]} 2. c4 {[%clk 0:03:00]}  c5 {[%clk 0:03:00]} 3. d5 {[%clk 0:03:00]}  b5 {[%clk 0:03:00]} 4. cxb5 {[%clk 0:03:01]}  a6 {[%clk 0:03:01]} 5. b6 {[%clk 0:03:01]}  d6 {[%clk 0:03:01]} 6. Nc3 {[%clk 0:02:57]}  Nbd7 {[%clk 0:03:01]} 7. e4 {[%clk 0:02:54]}  g6 {[%clk 0:03:01]} 8. Nf3 {[%clk 0:02:54]}  Bg7 {[%clk 0:03:01]} 9. Be2 {[%clk 0:02:54]}  O-O {[%clk 0:03:01]} 10. O-O {[%clk 0:02:53]}  Rb8 {[%clk 0:02:58]} 11. Bf4 {[%clk 0:02:38]}  Nh5 {[%clk 0:02:52]} 12. Bg5 {[%clk 0:02:33]}  Rxb6 {[%clk 0:02:50]} 13. Qd2 {[%clk 0:02:31]}  Re8 {[%clk 0:02:33]} 14. b3 {[%clk 0:02:28]}  Rb4 {[%clk 0:02:30]} 15. Bd3 {[%clk 0:02:02]}  Ne5 {[%clk 0:02:19]} 16. Nxe5 {[%clk 0:02:01]}  Bxe5 {[%clk 0:02:20]} 17. f4 {[%clk 0:01:54]}  Bg7 {[%clk 0:02:07]} 18. f5 {[%clk 0:01:47]}  Qa5 {[%clk 0:01:50]} 19. Rac1 {[%clk 0:01:29]}  Rd4 {[%clk 0:01:39]} 20. Be3 {[%clk 0:01:26]}  Qb4 {[%clk 0:01:24]} 21. Bxd4 {[%clk 0:01:19]}  Qxd4+ {[%clk 0:01:22]} 22. Kh1 {[%clk 0:01:18]}  gxf5 {[%clk 0:00:51]} 23. Ne2 {[%clk 0:01:11]}  Qe5 {[%clk 0:00:48]} 24. Qg5 {[%clk 0:00:52]}  fxe4 {[%clk 0:00:33]} 25. Qxe5 {[%clk 0:00:52]}  Bxe5 {[%clk 0:00:34]} 26. Bxe4 {[%clk 0:00:52]}  Nf6 {[%clk 0:00:35]} 27. Bf3 {[%clk 0:00:52]}  Bb7 {[%clk 0:00:28]} 28. Rfd1 {[%clk 0:00:49]}  a5 {[%clk 0:00:24]} 29. Nc3 {[%clk 0:00:48]}  Kg7 {[%clk 0:00:22]} 30. g3 {[%clk 0:00:41]}  h5 {[%clk 0:00:21]} 31. Kg2 {[%clk 0:00:40]}  h4 {[%clk 0:00:20]} 32. g4 {[%clk 0:00:40]}  Rh8 {[%clk 0:00:19]} 33. h3 {[%clk 0:00:40]}  Ra8 {[%clk 0:00:18]} 34. Na4 {[%clk 0:00:35]}  Nh7 {[%clk 0:00:16]} 35. Nb6 {[%clk 0:00:33]}  Ra6 {[%clk 0:00:13]} 36. Nc4 {[%clk 0:00:33]}  Bg3 {[%clk 0:00:14]} 37. Ne3 {[%clk 0:00:30]}  Bc8 {[%clk 0:00:12]} 38. Be4 {[%clk 0:00:28]}  Ng5 {[%clk 0:00:12]} 39. Nf5+ {[%clk 0:00:26]}  Bxf5 {[%clk 0:00:12]} 40. Bxf5 {[%clk 0:00:26]}  a4 {[%clk 0:00:12]} 41. Re1 {[%clk 0:00:19]}  axb3 {[%clk 0:00:13]} 42. axb3 {[%clk 0:00:19]}  Kf8 {[%clk 0:00:11]} 43. Rc2 {[%clk 0:00:18]}  Ra3 {[%clk 0:00:11]} 44. Re3 {[%clk 0:00:15]}  Bf4 {[%clk 0:00:11]} 45. Rd3 {[%clk 0:00:14]}  Be5 {[%clk 0:00:11]} 46. Re2 {[%clk 0:00:14]}  f6 {[%clk 0:00:10]} 47. Rc2 {[%clk 0:00:12]}  Ra1 {[%clk 0:00:10]} 48. Re3 {[%clk 0:00:11]}  Ra3 {[%clk 0:00:10]} 49. Rd3 {[%clk 0:00:11]}  Ke8 {[%clk 0:00:10]} 50. Bg6+ {[%clk 0:00:11]}  Kf8 {[%clk 0:00:10]} 51. Bf5 {[%clk 0:00:11]} 1/2-1/2


[Site "https://www.chess.com"]

[Event "Titled Tuesday Blitz February 22 Early 2022"]
[White "Butti, Enrique"]
[Black "Petrova, Irina"]
[WhiteFideId "3700470"]
[BlackFideId "14124122"]
[WhiteElo "2080"]
[BlackElo "1988"]
[Result "0-1"]
[Round "07"]
[TimeControl "180+1"]
[Date "2022.02.22"]
[WhiteClock "0:02:35"]
[BlackClock "0:02:49"]

1. d4 {[%clk 0:02:59]}  d6 {[%clk 0:02:59]} 2. e4 {[%clk 0:02:58]}  Nf6 {[%clk 0:02:58]} 3. Nc3 {[%clk 0:02:57]}  e5 {[%clk 0:02:59]} 4. Nf3 {[%clk 0:02:55]}  Nbd7 {[%clk 0:02:58]} 5. Rg1 {[%clk 0:02:49]}  g6 {[%clk 0:02:57]} 6. g4 {[%clk 0:02:44]}  Bg7 {[%clk 0:02:56]} 7. Be3 {[%clk 0:02:39]}  O-O {[%clk 0:02:55]} 8. Qd2 {[%clk 0:02:38]}  Re8 {[%clk 0:02:52]} 9. d5 {[%clk 0:02:38]}  Nc5 {[%clk 0:02:48]} 10. Bxc5 {[%clk 0:02:36]}  dxc5 {[%clk 0:02:49]} 11. O-O-O {[%clk 0:02:35]} 0-1


[Site "https://www.chess.com"]

[Event "Titled Tuesday Blitz February 22 Early 2022"]
[White "Chigaev, Maksim"]
[Black "Jacobson, Aaron"]
[WhiteFideId "4108116"]
[BlackFideId "2089912"]
[WhiteElo "2502"]
[BlackElo "2265"]
[Result "1-0"]
[Round "07"]
[TimeControl "180+1"]
[Date "2022.02.22"]
[WhiteClock "0:01:01"]
[BlackClock "0:00:02"]

1. d4 {[%clk 0:03:00]}  Nf6 {[%clk 0:02:57]} 2. Nf3 {[%clk 0:03:01]}  d5 {[%clk 0:02:58]} 3. c4 {[%clk 0:03:01]}  e6 {[%clk 0:02:58]} 4. g3 {[%clk 0:03:01]}  h6 {[%clk 0:02:41]} 5. Bg2 {[%clk 0:03:00]}  Bd6 {[%clk 0:02:42]} 6. O-O {[%clk 0:03:01]}  O-O {[%clk 0:02:42]} 7. Nbd2 {[%clk 0:03:01]}  b6 {[%clk 0:02:28]} 8. b3 {[%clk 0:03:01]}  Bb7 {[%clk 0:02:28]} 9. Bb2 {[%clk 0:03:01]}  Nbd7 {[%clk 0:02:29]} 10. Ne5 {[%clk 0:02:54]}  c5 {[%clk 0:02:26]} 11. cxd5 {[%clk 0:02:53]}  exd5 {[%clk 0:02:15]} 12. Ndc4 {[%clk 0:02:37]}  Be7 {[%clk 0:01:53]} 13. Nxd7 {[%clk 0:02:32]}  Qxd7 {[%clk 0:01:49]} 14. dxc5 {[%clk 0:02:25]}  dxc4 {[%clk 0:01:00]} 15. Qxd7 {[%clk 0:02:23]}  Nxd7 {[%clk 0:01:01]} 16. Bxb7 {[%clk 0:02:24]}  Rad8 {[%clk 0:00:44]} 17. c6 {[%clk 0:02:17]}  Nc5 {[%clk 0:00:44]} 18. c7 {[%clk 0:02:04]}  Rd2 {[%clk 0:00:33]} 19. Bc1 {[%clk 0:01:40]}  Nxb7 {[%clk 0:00:15]} 20. Bxd2 {[%clk 0:01:40]}  Rc8 {[%clk 0:00:15]} 21. Rfc1 {[%clk 0:01:34]}  b5 {[%clk 0:00:13]} 22. bxc4 {[%clk 0:01:30]}  b4 {[%clk 0:00:13]} 23. Rab1 {[%clk 0:01:26]}  a5 {[%clk 0:00:13]} 24. a3 {[%clk 0:01:26]}  Nc5 {[%clk 0:00:04]} 25. axb4 {[%clk 0:01:25]}  Ne4 {[%clk 0:00:04]} 26. Be1 {[%clk 0:01:22]}  a4 {[%clk 0:00:05]} 27. Ra1 {[%clk 0:01:14]}  Rxc7 {[%clk 0:00:05]} 28. Rxa4 {[%clk 0:01:15]}  Kh7 {[%clk 0:00:05]} 29. c5 {[%clk 0:01:14]}  g5 {[%clk 0:00:04]} 30. c6 {[%clk 0:01:12]}  Nd6 {[%clk 0:00:03]} 31. Ra6 {[%clk 0:01:07]}  Kg6 {[%clk 0:00:03]} 32. Rb6 {[%clk 0:01:03]}  Nc8 {[%clk 0:00:02]} 33. Rb7 {[%clk 0:01:02]}  Bd6 {[%clk 0:00:01]} 34. b5 {[%clk 0:01:02]}  Kf6 {[%clk 0:00:01]} 35. Ba5 {[%clk 0:01:02]}  Rxb7 {[%clk 0:00:01]} 36. cxb7 {[%clk 0:01:02]}  Na7 {[%clk 0:00:01]} 37. Bc7 {[%clk 0:01:01]}  Nxb5 {[%clk 0:00:01]} 38. Bxd6 {[%clk 0:01:01]}  Nxd6 {[%clk 0:00:01]} 39. b8=Q {[%clk 0:01:01]}  Nf5 {[%clk 0:00:01]} 40. Rc6+ {[%clk 0:00:59]}  Kg7 {[%clk 0:00:02]} 41. Qe5+ {[%clk 0:00:59]}  f6 {[%clk 0:00:02]} 42. Qxf6+ {[%clk 0:00:59]}  Kg8 {[%clk 0:00:02]} 43. Rc8+ {[%clk 0:01:00]}  Kh7 {[%clk 0:00:02]} 44. Rh8# {[%clk 0:01:01]} 1-0


[Site "https://www.chess.com"]

[Event "Titled Tuesday Blitz February 22 Early 2022"]
[White "Coelho, Ramyres Santana"]
[Black "Krylov, Ivan"]
[WhiteFideId "2120690"]
[BlackFideId "24128066"]
[WhiteElo "1888"]
[BlackElo "2258"]
[Result "0-1"]
[Round "07"]
[TimeControl "180+1"]
[Date "2022.02.22"]
[WhiteClock "0:00:38"]
[BlackClock "0:00:34"]

1. e4 {[%clk 0:02:55]}  c6 {[%clk 0:03:00]} 2. d4 {[%clk 0:02:51]}  d5 {[%clk 0:03:00]} 3. Nc3 {[%clk 0:02:52]}  dxe4 {[%clk 0:03:01]} 4. Nxe4 {[%clk 0:02:53]}  Nd7 {[%clk 0:03:01]} 5. Qe2 {[%clk 0:02:52]}  Ndf6 {[%clk 0:03:02]} 6. Nxf6+ {[%clk 0:02:52]}  Nxf6 {[%clk 0:03:03]} 7. Nf3 {[%clk 0:02:53]}  Bg4 {[%clk 0:03:02]} 8. Be3 {[%clk 0:02:53]}  e6 {[%clk 0:02:59]} 9. h3 {[%clk 0:02:54]}  Bh5 {[%clk 0:02:59]} 10. g4 {[%clk 0:02:55]}  Bg6 {[%clk 0:02:59]} 11. Ne5 {[%clk 0:02:51]}  Bd6 {[%clk 0:02:57]} 12. Bg2 {[%clk 0:02:47]}  Qc7 {[%clk 0:02:55]} 13. f4 {[%clk 0:02:45]}  Be4 {[%clk 0:02:50]} 14. Bxe4 {[%clk 0:02:32]}  Nxe4 {[%clk 0:02:51]} 15. O-O {[%clk 0:02:29]}  h5 {[%clk 0:02:41]} 16. Rf3 {[%clk 0:02:24]}  hxg4 {[%clk 0:02:38]} 17. hxg4 {[%clk 0:02:25]}  O-O-O {[%clk 0:02:29]} 18. c3 {[%clk 0:02:21]}  Nf6 {[%clk 0:02:28]} 19. Rg3 {[%clk 0:02:07]}  Rh4 {[%clk 0:02:22]} 20. g5 {[%clk 0:02:05]}  Nd5 {[%clk 0:02:18]} 21. Rf1 {[%clk 0:01:49]}  Rdh8 {[%clk 0:02:13]} 22. Rg2 {[%clk 0:01:44]}  Rh3 {[%clk 0:01:50]} 23. Rf3 {[%clk 0:01:15]}  Rh1+ {[%clk 0:01:43]} 24. Kf2 {[%clk 0:01:11]}  f6 {[%clk 0:01:37]} 25. Nd3 {[%clk 0:00:57]}  R8h2 {[%clk 0:01:20]} 26. Rg3 {[%clk 0:00:51]}  Bxf4 {[%clk 0:01:09]} 27. Nxf4 {[%clk 0:00:50]}  Nxf4 {[%clk 0:01:06]} 28. Bxf4 {[%clk 0:00:51]}  Qxf4+ {[%clk 0:01:05]} 29. Qf3 {[%clk 0:00:48]}  Qd2+ {[%clk 0:00:59]} 30. Qe2 {[%clk 0:00:45]}  Rxg2+ {[%clk 0:00:55]} 31. Rxg2 {[%clk 0:00:45]}  Qf4+ {[%clk 0:00:49]} 32. Qf3 {[%clk 0:00:39]}  Rf1+ {[%clk 0:00:45]} 33. Kxf1 {[%clk 0:00:39]}  Qxf3+ {[%clk 0:00:44]} 34. Rf2 {[%clk 0:00:40]}  Qd1+ {[%clk 0:00:44]} 35. Kg2 {[%clk 0:00:40]}  Qg4+ {[%clk 0:00:43]} 36. Kf1 {[%clk 0:00:40]}  Qxg5 {[%clk 0:00:43]} 37. Rg2 {[%clk 0:00:41]}  Qc1+ {[%clk 0:00:43]} 38. Kf2 {[%clk 0:00:41]}  Qxb2+ {[%clk 0:00:43]} 39. Kg3 {[%clk 0:00:42]}  Qxc3+ {[%clk 0:00:43]} 40. Kh4 {[%clk 0:00:42]}  Qxd4+ {[%clk 0:00:44]} 41. Kh5 {[%clk 0:00:43]}  Qd1+ {[%clk 0:00:41]} 42. Kg6 {[%clk 0:00:42]}  Qd7 {[%clk 0:00:36]} 43. Rh2 {[%clk 0:00:40]}  Kc7 {[%clk 0:00:36]} 44. a4 {[%clk 0:00:40]}  c5 {[%clk 0:00:35]} 45. a5 {[%clk 0:00:40]}  c4 {[%clk 0:00:33]} 46. Rh4 {[%clk 0:00:38]}  Qd5 {[%clk 0:00:33]} 47. Kxg7 {[%clk 0:00:36]}  Qg5+ {[%clk 0:00:33]} 48. Kf7 {[%clk 0:00:36]}  Qxh4 {[%clk 0:00:34]} 49. Kxe6 {[%clk 0:00:36]}  c3 {[%clk 0:00:34]} 50. Kd5 {[%clk 0:00:37]}  c2 {[%clk 0:00:35]} 51. a6 {[%clk 0:00:37]}  c1=Q {[%clk 0:00:35]} 52. axb7 {[%clk 0:00:38]}  Qhc4# {[%clk 0:00:34]} 0-1


[Site "https://www.chess.com"]

[Event "Titled Tuesday Blitz February 22 Early 2022"]
[White "Deac, Bogdan-Daniel"]
[Black "Van Foreest, Jorden"]
[WhiteFideId "1226380"]
[BlackFideId "1039784"]
[WhiteElo "2646"]
[BlackElo "2609"]
[Result "1/2-1/2"]
[Round "07"]
[TimeControl "180+1"]
[Date "2022.02.22"]
[WhiteClock "0:00:04"]
[BlackClock "0:00:11"]

1. e4 {[%clk 0:03:00]}  e5 {[%clk 0:02:58]} 2. Nf3 {[%clk 0:03:01]}  Nc6 {[%clk 0:02:58]} 3. Bb5 {[%clk 0:03:01]}  Nf6 {[%clk 0:02:56]} 4. O-O {[%clk 0:03:01]}  Be7 {[%clk 0:02:51]} 5. Re1 {[%clk 0:02:58]}  d6 {[%clk 0:02:48]} 6. d4 {[%clk 0:02:58]}  exd4 {[%clk 0:02:49]} 7. Nxd4 {[%clk 0:02:58]}  Bd7 {[%clk 0:02:50]} 8. Nc3 {[%clk 0:02:59]}  O-O {[%clk 0:02:50]} 9. Bxc6 {[%clk 0:02:55]}  bxc6 {[%clk 0:02:49]} 10. Qf3 {[%clk 0:02:50]}  Re8 {[%clk 0:02:48]} 11. e5 {[%clk 0:02:42]}  dxe5 {[%clk 0:02:47]} 12. Nxc6 {[%clk 0:02:41]}  Bxc6 {[%clk 0:02:19]} 13. Qxc6 {[%clk 0:02:42]}  Bd6 {[%clk 0:02:05]} 14. Bg5 {[%clk 0:02:36]}  Qd7 {[%clk 0:02:04]} 15. Qf3 {[%clk 0:02:14]}  Qe6 {[%clk 0:02:02]} 16. Bxf6 {[%clk 0:02:10]}  Qxf6 {[%clk 0:02:03]} 17. Qxf6 {[%clk 0:02:08]}  gxf6 {[%clk 0:02:04]} 18. Ne4 {[%clk 0:02:08]}  Kg7 {[%clk 0:01:53]} 19. Rad1 {[%clk 0:01:13]}  Re6 {[%clk 0:01:53]} 20. g4 {[%clk 0:01:08]}  Kg6 {[%clk 0:01:50]} 21. Ng3 {[%clk 0:01:03]}  a5 {[%clk 0:01:47]} 22. Re4 {[%clk 0:00:56]}  Rb8 {[%clk 0:01:44]} 23. b3 {[%clk 0:00:56]}  Rb4 {[%clk 0:01:42]} 24. Rde1 {[%clk 0:00:49]}  Bc5 {[%clk 0:01:41]} 25. Nf5 {[%clk 0:00:35]}  Re8 {[%clk 0:01:31]} 26. c3 {[%clk 0:00:10]}  Rxe4 {[%clk 0:01:29]} 27. Rxe4 {[%clk 0:00:11]}  Rd8 {[%clk 0:01:30]} 28. Ne3 {[%clk 0:00:11]}  Rd2 {[%clk 0:01:27]} 29. a4 {[%clk 0:00:04]}  Rb2 {[%clk 0:01:24]} 30. Rc4 {[%clk 0:00:04]}  Bb6 {[%clk 0:01:23]} 31. Nd5 {[%clk 0:00:04]}  Bxf2+ {[%clk 0:01:22]} 32. Kf1 {[%clk 0:00:04]}  Bb6 {[%clk 0:01:21]} 33. Rc6 {[%clk 0:00:04]}  Kg5 {[%clk 0:01:19]} 34. Nxb6 {[%clk 0:00:04]}  cxb6 {[%clk 0:01:19]} 35. Rxb6 {[%clk 0:00:05]}  f5 {[%clk 0:01:10]} 36. gxf5 {[%clk 0:00:05]}  Kxf5 {[%clk 0:01:11]} 37. b4 {[%clk 0:00:05]}  axb4 {[%clk 0:01:06]} 38. cxb4 {[%clk 0:00:06]}  Ke4 {[%clk 0:01:05]} 39. Rf6 {[%clk 0:00:04]}  Rxb4 {[%clk 0:01:04]} 40. Rxf7 {[%clk 0:00:04]}  h5 {[%clk 0:01:02]} 41. Rh7 {[%clk 0:00:04]}  Kf3 {[%clk 0:01:02]} 42. Rf7+ {[%clk 0:00:03]}  Ke3 {[%clk 0:01:00]} 43. a5 {[%clk 0:00:03]}  Ra4 {[%clk 0:00:58]} 44. Rf5 {[%clk 0:00:03]}  Rxa5 {[%clk 0:00:46]} 45. Rxh5 {[%clk 0:00:03]}  Ra1+ {[%clk 0:00:41]} 46. Kg2 {[%clk 0:00:03]}  e4 {[%clk 0:00:40]} 47. Rh8 {[%clk 0:00:03]}  Ke2 {[%clk 0:00:36]} 48. h4 {[%clk 0:00:03]}  e3 {[%clk 0:00:36]} 49. h5 {[%clk 0:00:03]}  Ra5 {[%clk 0:00:28]} 50. Kg3 {[%clk 0:00:02]}  Re5 {[%clk 0:00:20]} 51. h6 {[%clk 0:00:02]}  Ke1 {[%clk 0:00:19]} 52. Kf4 {[%clk 0:00:02]}  Re7 {[%clk 0:00:19]} 53. Kg5 {[%clk 0:00:01]}  e2 {[%clk 0:00:20]} 54. Ra8 {[%clk 0:00:01]}  Kf2 {[%clk 0:00:14]} 55. Ra1 {[%clk 0:00:02]}  Kf3 {[%clk 0:00:10]} 56. Ra3+ {[%clk 0:00:02]}  Re3 {[%clk 0:00:10]} 57. Ra1 {[%clk 0:00:02]}  Rd3 {[%clk 0:00:10]} 58. h7 {[%clk 0:00:01]}  Rd5+ {[%clk 0:00:10]} 59. Kg6 {[%clk 0:00:02]}  Rd6+ {[%clk 0:00:10]} 60. Kg7 {[%clk 0:00:02]}  Rd7+ {[%clk 0:00:10]} 61. Kg8 {[%clk 0:00:03]}  Rd8+ {[%clk 0:00:11]} 62. Kg7 {[%clk 0:00:03]}  Rd7+ {[%clk 0:00:11]} 63. Kg6 {[%clk 0:00:04]}  Rd6+ {[%clk 0:00:11]} 64. Kg7 {[%clk 0:00:04]}  Rd7+ {[%clk 0:00:11]} 1/2-1/2


[Site "https://www.chess.com"]